[Event "5th Ordu Open 2019"]
[Site "Ordu"]
[Date "2019.05.02"]
[Round "5.16"]
[White "Yuksel, Fatih Canberk"]
[Black "Iakobadze, Ucha"]
[Result "0-1"]
[ECO "A01"]
[WhiteElo "1299"]
[BlackElo "1387"]
[Annotator "NA"]
[PlyCount "80"]
[EventDate "2019.04.29"]
[EventType "swiss"]
[EventCountry "TUR"]
[SourceTitle "playchess.com"]
[Source "ChessBase"]
[SourceQuality "1"]
[TimeControl "5400+30"]

1. b3 {[%emt 0:30:30]} d5 {[%emt 0:31:30]} 2. Bb2 {[%emt 0:00:00]} Nc6 {[%emt 0:00:30]} 3. e3 {[%emt 0:00:00]} a6 {[%emt 0:01:30]} 4. Nf3 {[%emt 0:01:30]} f6 {[%emt 0:01:30]} 5. Be2 {[%emt 0:01:30]} e5 {[%emt 0:01:30]} 6. d3 {[%emt 0:00:30]} Be6 {[%emt 0:03:30]} 7. O-O {[%emt 0:01:30]} Bd6 {[%emt 0:01:30]} 8. Nbd2 {[%emt 0:02:30]} Nge7 {[%emt 0:02:30]} 9. c4 {[%emt 0:01:30]} Qd7 {[%emt 0:03:30]} 10. cxd5 {[%emt 0:03:30]} Nxd5 {[%emt 0:02:30]} 11. Nc4 {[%emt 0:01:30]} O-O-O {[%emt 0:02:30]} 12. Rc1 {[%emt 0:02:30]} g5 {[%emt 0:01:30]} 13. d4 {[%emt 0:02:30]} e4 {[%emt 0:02:30]} 14. Nxd6+ {[%emt 0:00:00]} Qxd6 {[%emt 0:01:30]} 15. Nd2 {[%emt 0:00:00]} f5 {[%emt 0:00:30]} 16. Nc4 {[%emt 0:00:30]} Qd7 {[%emt 0:01:30]} 17. Ne5 {[%emt 0:03:30]} Nxe5 {[%emt 0:01:30]} 18. dxe5 {[%emt 0:00:00]} g4 {[%emt 0:00:30]} 19. Bc4 {[%emt 0:00:00]} h5 {[%emt 0:03:30]} 20. Qc2 {[%emt 0:03:30]} Rh7 {[%emt 0:02:30]} 21. Rfd1 {[%emt 0:01:30]} c6 {[%emt 0:02:30]} 22. Bxa6 {[%emt 0:07:30]} bxa6 {[%emt 0:03:30]} 23. Qxc6+ {[%emt 0:00:30]} Qxc6 {[%emt 0:02:30]} 24. Rxc6+ {[%emt 0:00:00]} Nc7 {[%emt 0:01:30]} 25. Rdd6 {[%emt 0:02:00]} Rhd7 {[%emt 0:04:43]} 26. Bd4 {[%emt 0:01:30]} Bd5 {[%emt 0:01:59]} 27. Rxd7 {[%emt 0:20:51]} Rxd7 {[%emt 0:02:36]} 28. Rh6 {[%emt 0:00:08]} Bf7 {[%emt 0:01:38]} 29. g3 {[%emt 0:01:07]} Ne6 {[%emt 0:02:32]} 30. Bc3 {[%emt 0:04:18]} Rd1+ {[%emt 0:01:02]} 31. Kg2 {[%emt 0:00:09]} Ng5 {[%emt 0:01:24]} 32. Rd6 {[%emt 0:05:52]} Rxd6 {[%emt 0:00:30]} 33. exd6 {[%emt 0:00:30]} Kd7 {[%emt 0:00:30]} 34. Be5 {[%emt 0:00:00]} Be6 {[%emt 0:01:17]} 35. Kf1 {[%emt 0:03:36]} Nf3 {[%emt 0:01:33]} 36. Bf4 {[%emt 0:00:54]} Nxh2+ {[%emt 0:00:13]} 37. Ke2 {[%emt 0:00:30]} Nf3 {[%emt 0:00:23]} 38. Kd1 {[%emt 0:00:27]} Kc6 {[%emt 0:01:12]} 39. Kc2 {[%emt 0:00:45]} Ne1+ {[%emt 0:00:14]} 40. Kd2 {[%emt 0:00:28]} Nd3 {[%emt 0:00:45]} 0-1

[Event "5th Ordu Open 2019"]
[Site "Ordu"]
[Date "2019.05.02"]
[Round "6.1"]
[White "Pacher, Milan"]
[Black "Kilic, Efe Mert"]
[Result "1-0"]
[ECO "C70"]
[WhiteElo "2396"]
[BlackElo "2248"]
[Annotator "NA"]
[PlyCount "89"]
[EventDate "2019.04.29"]
[EventType "swiss"]
[EventCountry "TUR"]
[SourceTitle "playchess.com"]
[Source "ChessBase"]
[SourceQuality "1"]
[TimeControl "5400+30"]

1. e4 {[%emt 0:02:30]} e5 {[%emt 0:00:30]} 2. Nf3 {[%emt 0:00:30]} Nc6 {[%emt 0:00:30]} 3. Bb5 {[%emt 0:00:30]} a6 {[%emt 0:00:30]} 4. Ba4 {[%emt 0:00:30]} g6 {[%emt 0:00:30]} 5. c3 {[%emt 0:00:30]} Bg7 {[%emt 0:00:30]} 6. d4 {[%emt 0:00:30]} exd4 {[%emt 0:00:30]} 7. cxd4 {[%emt 0:00:30]} b5 {[%emt 0:00:30]} 8. Bb3 {[%emt 0:00:00]} Nge7 {[%emt 0:00:30]} 9. Nc3 {[%emt 0:01:00]} d6 {[%emt 0:00:00]} 10. O-O {[%emt 0:00:30]} O-O {[%emt 0:01:00]} 11. h3 {[%emt 0:00:30]} h6 {[%emt 0:02:30]} 12. a4 {[%emt 0:04:30]} b4 {[%emt 0:03:30]} 13. Nd5 {[%emt 0:00:30]} Na5 {[%emt 0:01:30]} 14. Nxe7+ {[%emt 0:00:30]} Qxe7 {[%emt 0:00:30]} 15. Bc2 {[%emt 0:00:00]} c5 {[%emt 0:01:30]} 16. Re1 {[%emt 0:01:00]} cxd4 {[%emt 0:08:30]} 17. Nxd4 {[%emt 0:01:30]} Qa7 {[%emt 0:01:30]} 18. Nf3 {[%emt 0:05:30]} Qc7 {[%emt 0:04:30]} 19. Bf4 {[%emt 0:15:30]} Rd8 {[%emt 0:02:30]} 20. Rb1 {[%emt 0:00:30]} Kh7 {[%emt 0:13:30]} 21. b3 {[%emt 0:04:30]} Be6 {[%emt 0:00:30]} 22. Re2 {[%emt 0:04:30]} Rac8 {[%emt 0:18:30]} 23. Nd4 {[%emt 0:13:30]} Nc6 {[%emt 0:00:30]} 24. Nxe6 {[%emt 0:02:30]} fxe6 {[%emt 0:00:30]} 25. Bd3 {[%emt 0:00:30]} Qb6 {[%emt 0:15:30]} 26. Bc4 {[%emt 0:05:30]} Nd4 {[%emt 0:00:30]} 27. Rd2 {[%emt 0:00:30]} e5 {[%emt 0:00:30]} 28. Be3 {[%emt 0:00:30]} a5 {[%emt 0:01:30]} 29. f4 {[%emt 0:09:30]} Rf8 {[%emt 0:01:34]} 30. f5 {[%emt 0:00:30]} gxf5 {[%emt 0:03:20]} 31. exf5 {[%emt 0:00:30]} Qd8 {[%emt 0:00:30]} 32. Bxd4 {[%emt 0:06:30]} exd4 {[%emt 0:00:05]} 33. Re2 {[%emt 0:00:30]} Be5 {[%emt 0:00:30]} 34. Qd3 {[%emt 0:00:30]} Kg7 {[%emt 0:04:44]} 35. Rf1 {[%emt 0:00:35]} Qg5 {[%emt 0:00:23]} 36. Re4 {[%emt 0:04:54]} h5 {[%emt 0:00:26]} 37. Rxd4 {[%emt 0:01:12]} Bxd4+ {[%emt 0:02:11]} 38. Qxd4+ {[%emt 0:00:03]} Qf6 {[%emt 0:04:57]} 39. Qd1 {[%emt 0:02:56]} Rxc4 {[%emt 0:04:02]} 40. bxc4 {[%emt 0:00:04]} Rc8 {[%emt 0:02:37]} 41. Qxh5 {[%emt 0:03:58]} Rxc4 {[%emt 0:00:08]} 42. Qe8 {[%emt 0:00:23]} Rc7 {[%emt 0:01:00]} 43. Rf4 {[%emt 0:01:20]} Rf7 {[%emt 0:01:26]} 44. Rg4+ {[%emt 0:00:30]} Kh6 {[%emt 0:00:30]} 45. Rg6+ {[%emt 0:00:00]} 1-0

[Event "5th Ordu Open 2019"]
[Site "Ordu"]
[Date "2019.05.02"]
[Round "6.2"]
[White "Isik, Alparslan"]
[Black "Dogan, Nazmi Can"]
[Result "1/2-1/2"]
[ECO "B37"]
[WhiteElo "2233"]
[BlackElo "2214"]
[Annotator "NA"]
[PlyCount "65"]
[EventDate "2019.04.29"]
[EventType "swiss"]
[EventCountry "TUR"]
[SourceTitle "playchess.com"]
[Source "ChessBase"]
[SourceQuality "1"]
[TimeControl "5400+30"]

1. Nf3 {[%emt 0:00:30]} Nf6 {[%emt 0:02:30]} 2. c4 {[%emt 0:00:00]} g6 {[%emt 0:04:30]} 3. Nc3 {[%emt 0:00:00]} Bg7 {[%emt 0:01:30]} 4. e4 {[%emt 0:00:30]} c5 {[%emt 0:00:30]} 5. d4 {[%emt 0:01:30]} cxd4 {[%emt 0:00:30]} 6. Nxd4 {[%emt 0:00:00]} Nc6 {[%emt 0:00:00]} 7. Nc2 {[%emt 0:02:00]} d6 {[%emt 0:02:00]} 8. Be2 {[%emt 0:00:30]} O-O {[%emt 0:01:30]} 9. O-O {[%emt 0:01:30]} Nd7 {[%emt 0:01:30]} 10. Bd2 {[%emt 0:01:30]} Nc5 {[%emt 0:01:30]} 11. b4 {[%emt 0:07:30]} Ne6 {[%emt 0:03:30]} 12. Rc1 {[%emt 0:07:30]} Ned4 {[%emt 0:15:30]} 13. Nxd4 {[%emt 0:01:30]} Nxd4 {[%emt 0:01:30]} 14. Be3 {[%emt 0:13:30]} Nxe2+ {[%emt 0:05:30]} 15. Nxe2 {[%emt 0:00:30]} Bd7 {[%emt 0:05:30]} 16. Qd3 {[%emt 0:04:30]} a6 {[%emt 0:11:30]} 17. Rfd1 {[%emt 0:02:30]} Rc8 {[%emt 0:03:30]} 18. Nc3 {[%emt 0:04:30]} Be6 {[%emt 0:07:30]} 19. Nd5 {[%emt 0:02:30]} Bxd5 {[%emt 0:02:30]} 20. exd5 {[%emt 0:00:30]} b6 {[%emt 0:03:30]} 21. c5 {[%emt 0:09:30]} bxc5 {[%emt 0:00:30]} 22. bxc5 {[%emt 0:01:30]} dxc5 {[%emt 0:00:00]} 23. Qxa6 {[%emt 0:05:30]} Bd4 {[%emt 0:00:00]} 24. Bxd4 {[%emt 0:00:30]} cxd4 {[%emt 0:00:30]} 25. Rxc8 {[%emt 0:01:30]} Qxc8 {[%emt 0:00:00]} 26. Qa4 {[%emt 0:09:30]} e5 {[%emt 0:01:00]} 27. dxe6 {[%emt 0:01:30]} Qxe6 {[%emt 0:00:00]} 28. g3 {[%emt 0:00:30]} Rd8 {[%emt 0:00:00]} 29. Rxd4 {[%emt 0:01:30]} Rxd4 {[%emt 0:00:30]} 30. Qxd4 {[%emt 0:00:30]} Qxa2 {[%emt 0:00:30]} 31. Qd8+ {[%emt 0:00:30]} Kg7 {[%emt 0:00:30]} 32. Qd4+ {[%emt 0:00:30]} Kg8 {[%emt 0:00:30]} 33. Qd8+ {[%emt 0:00:00]} 1/2-1/2

[Event "5th Ordu Open 2019"]
[Site "Ordu"]
[Date "2019.05.02"]
[Round "6.4"]
[White "Mgeladze, Tamaz"]
[Black "Haznedaroglu, Kivanc"]
[Result "0-1"]
[ECO "A10"]
[WhiteElo "2396"]
[BlackElo "2466"]
[Annotator "ChessBase"]
[PlyCount "70"]
[EventDate "2019.04.29"]
[EventType "swiss"]
[EventCountry "TUR"]
[SourceTitle "playchess.com"]
[Source "ChessBase"]
[SourceQuality "1"]
[TimeControl "5400+30"]

1. c4 {[%emt 0:04:30]} b6 {[%emt 0:00:30]} 2. Nf3 {[%emt 0:01:30]} Bb7 {[%emt 0:00:30]} 3. g3 {[%emt 0:00:30]} Bxf3 {[%emt 0:00:30]} 4. exf3 {[%emt 0:00:30]} c5 {[%emt 0:00:30]} 5. d4 {[%emt 0:00:30]} Nc6 {[%emt 0:00:00]} 6. dxc5 {[%emt 0:04:30]} bxc5 {[%emt 0:00:00]} 7. b3 {[%emt 0:00:30]} e6 {[%emt 0:00:30]} 8. Bb2 {[%emt 0:00:30]} Nge7 {[%emt 0:00:30]} 9. Bh3 {[%emt 0:03:30]} h5 {[%emt 0:01:30]} 10. O-O {[%emt 0:07:30]} h4 {[%emt 0:01:30]} 11. Bg2 {[%emt 0:00:00]} hxg3 {[%emt 0:01:30]} 12. hxg3 {[%emt 0:00:00]} Nf5 {[%emt 0:00:30]} 13. Na3 {[%emt 0:04:30]} Rc8 {[%emt 0:13:30]} 14. Qd3 {[%emt 0:10:30]} Ncd4 {[%emt 0:10:30]} 15. Nc2 {[%emt 0:03:30]} Nxc2 {[%emt 0:02:30]} 16. Qxc2 {[%emt 0:00:30]} Qg5 {[%emt 0:00:30]} 17. Rad1 {[%emt 0:02:30]} Be7 {[%emt 0:03:30]} 18. Rfe1 {[%emt 0:03:30]} Bf6 {[%emt 0:03:30]} 19. f4 {[%emt 0:02:30]} Qh5 {[%emt 0:01:30]} 20. Bxf6 {[%emt 0:03:30]} gxf6 {[%emt 0:00:30]} 21. Qd3 {[%emt 0:00:30]} d6 {[%emt 0:02:30]} 22. Qc3 {[%emt 0:02:30]} Rh6 {[%emt 0:06:30]} 23. Bf3 {[%emt 0:06:30]} Qh2+ {[%emt 0:02:30]} 24. Kf1 {[%emt 0:00:00]} Rg6 {[%emt 0:00:30]} 25. Bg2 {[%emt 0:10:00]} Kf8 {[%emt 0:07:30]} 26. Qf3 {[%emt 0:03:30]} Kg7 {[%emt 0:01:30]} 27. Rxe6 {[%emt 0:03:30]} Nxg3+ {[%emt 0:00:30]} 28. fxg3 {[%emt 0:00:30]} Rxg3 {[%emt 0:00:30]} 29. Qb7 {[%emt 0:00:30]} Rc7 {[%emt 0:01:30]} 30. Qa8 {[%emt 0:05:59]} fxe6 {[%emt 0:00:30]} 31. Rxd6 {[%emt 0:01:29]} Re3 {[%emt 0:01:30]} 32. Rd2 {[%emt 0:01:35]} Qxf4+ {[%emt 0:00:30]} 33. Rf2 {[%emt 0:00:00]} Qe5 {[%emt 0:00:30]} 34. Be4 {[%emt 0:01:58]} Rd7 {[%emt 0:00:30]} 35. Rd2 {[%emt 0:02:41]} Qa1+ {[%emt 0:01:30]} 0-1

[Event "5th Ordu Open 2019"]
[Site "Ordu"]
[Date "2019.05.02"]
[Round "6.5"]
[White "Odeev, Handszar"]
[Black "Eren, Ataberk"]
[Result "1/2-1/2"]
[ECO "C01"]
[WhiteElo "2394"]
[BlackElo "2256"]
[Annotator "NA"]
[PlyCount "44"]
[EventDate "2019.04.29"]
[EventType "swiss"]
[EventCountry "TUR"]
[SourceTitle "playchess.com"]
[Source "ChessBase"]
[SourceQuality "1"]
[TimeControl "5400+30"]

1. e4 {[%emt 0:07:30]} e6 {[%emt 0:00:30]} 2. d4 {[%emt 0:01:30]} d5 {[%emt 0:00:00]} 3. exd5 {[%emt 0:00:30]} exd5 {[%emt 0:00:00]} 4. Nf3 {[%emt 0:00:30]} Nf6 {[%emt 0:00:30]} 5. Bd3 {[%emt 0:00:30]} Bd6 {[%emt 0:00:30]} 6. O-O {[%emt 0:00:30]} O-O {[%emt 0:00:00]} 7. h3 {[%emt 0:05:30]} h6 {[%emt 0:00:00]} 8. c4 {[%emt 0:06:30]} dxc4 {[%emt 0:00:30]} 9. Bxc4 {[%emt 0:00:30]} Nc6 {[%emt 0:00:30]} 10. Nc3 {[%emt 0:00:30]} Bf5 {[%emt 0:00:30]} 11. Re1 {[%emt 0:00:30]} Re8 {[%emt 0:02:30]} 12. Rxe8+ {[%emt 0:18:30]} Qxe8 {[%emt 0:00:30]} 13. Be3 {[%emt 0:00:30]} a6 {[%emt 0:00:00]} 14. Nh4 {[%emt 0:10:30]} Be4 {[%emt 0:12:00]} 15. Nxe4 {[%emt 0:02:30]} Qxe4 {[%emt 0:01:30]} 16. Nf3 {[%emt 0:03:30]} Na5 {[%emt 0:08:30]} 17. Bd3 {[%emt 0:01:30]} Qd5 {[%emt 0:01:30]} 18. Qc2 {[%emt 0:01:30]} Rd8 {[%emt 0:02:30]} 19. Qa4 {[%emt 0:09:30]} Nd7 {[%emt 0:07:30]} 20. Qc2 {[%emt 0:05:30]} Nf6 {[%emt 0:00:30]} 21. Qa4 {[%emt 0:02:43]} Nd7 {[%emt 0:00:00]} 22. Qc2 {[%emt 0:00:17]} Nf6 {[%emt 0:01:00]} 1/2-1/2

[Event "5th Ordu Open 2019"]
[Site "Ordu"]
[Date "2019.05.02"]
[Round "6.7"]
[White "Hamidi, Amir Mohammad"]
[Black "Klekowski, Maciej"]
[Result "1/2-1/2"]
[ECO "A81"]
[WhiteElo "2217"]
[BlackElo "2502"]
[Annotator "RC"]
[PlyCount "40"]
[EventDate "2019.04.29"]
[EventType "swiss"]
[EventCountry "TUR"]
[SourceTitle "playchess.com"]
[Source "ChessBase"]
[SourceQuality "1"]
[TimeControl "5400+30"]

1. d4 {[%emt 0:00:30]} f5 {[%emt 0:00:30]} 2. g3 {[%emt 0:00:30]} Nf6 {[%emt 0:00:30]} 3. Bg2 {[%emt 0:00:30]} g6 {[%emt 0:00:30]} 4. c3 {[%emt 0:00:30]} d6 {[%emt 0:12:30]} 5. Nd2 {[%emt 0:04:30]} Bg7 {[%emt 0:03:30]} 6. e4 {[%emt 0:01:30]} Nc6 {[%emt 0:00:30]} 7. exf5 {[%emt 0:00:30]} gxf5 {[%emt 0:03:30]} 8. d5 {[%emt 0:02:30]} Ne5 {[%emt 0:00:30]} 9. Ndf3 {[%emt 0:00:30]} O-O {[%emt 0:03:30]} 10. Ne2 {[%emt 0:03:30]} c6 {[%emt 0:15:30]} 11. Nf4 {[%emt 0:04:30]} Nxd5 {[%emt 0:13:30]} 12. Nxd5 {[%emt 0:00:30]} cxd5 {[%emt 0:00:30]} 13. Qxd5+ {[%emt 0:00:00]} e6 {[%emt 0:00:30]} 14. Qd1 {[%emt 0:00:00]} Bd7 {[%emt 0:02:30]} 15. Qxd6 {[%emt 0:07:30]} Bc6 {[%emt 0:02:30]} 16. Qxd8 {[%emt 0:06:30]} Raxd8 {[%emt 0:00:00]} 17. Nxe5 {[%emt 0:02:30]} Bxg2 {[%emt 0:00:00]} 18. Rg1 {[%emt 0:00:30]} Bh3 {[%emt 0:13:30]} 19. f4 {[%emt 0:02:30]} Rd5 {[%emt 0:07:29]} 20. Be3 {[%emt 0:01:30]} Bxe5 {[%emt 0:00:34]} 1/2-1/2

[Event "5th Ordu Open 2019"]
[Site "Ordu"]
[Date "2019.05.02"]
[Round "6.9"]
[White "Maleki, Amirabbas"]
[Black "Atas, Yunus"]
[Result "1/2-1/2"]
[ECO "D04"]
[WhiteElo "1896"]
[BlackElo "1853"]
[Annotator "NA"]
[PlyCount "125"]
[EventDate "2019.04.29"]
[EventType "swiss"]
[EventCountry "TUR"]
[SourceTitle "playchess.com"]
[Source "ChessBase"]
[SourceQuality "1"]
[TimeControl "5400+30"]

1. d4 {[%emt 0:37:30]} Nf6 {[%emt 0:31:30]} 2. Nf3 {[%emt 0:00:30]} d5 {[%emt 0:02:30]} 3. e3 {[%emt 0:00:30]} c5 {[%emt 0:01:30]} 4. b3 {[%emt 0:00:30]} Nc6 {[%emt 0:00:30]} 5. Bb2 {[%emt 0:00:30]} Bf5 {[%emt 0:00:30]} 6. a3 {[%emt 0:03:30]} e6 {[%emt 0:00:30]} 7. Bd3 {[%emt 0:00:00]} Bg4 {[%emt 0:01:30]} 8. Nbd2 {[%emt 0:00:00]} cxd4 {[%emt 0:00:30]} 9. exd4 {[%emt 0:00:30]} Bd6 {[%emt 0:00:00]} 10. c4 {[%emt 0:02:30]} O-O {[%emt 0:13:00]} 11. Qc2 {[%emt 0:01:30]} dxc4 {[%emt 0:02:30]} 12. bxc4 {[%emt 0:01:30]} Rc8 {[%emt 0:06:30]} 13. Ne5 {[%emt 0:06:30]} Bh5 {[%emt 0:05:30]} 14. f4 {[%emt 0:04:30]} Bb8 {[%emt 0:07:30]} 15. Nb3 {[%emt 0:04:30]} a5 {[%emt 0:07:20]} 16. Nxc6 {[%emt 0:05:30]} Rxc6 {[%emt 0:00:35]} 17. O-O {[%emt 0:01:30]} Bg6 {[%emt 0:01:49]} 18. Bxg6 {[%emt 0:00:30]} hxg6 {[%emt 0:00:07]} 19. Rad1 {[%emt 0:01:30]} Qc7 {[%emt 0:00:40]} 20. c5 {[%emt 0:05:30]} Nd5 {[%emt 0:00:40]} 21. Bc1 {[%emt 0:00:30]} b6 {[%emt 0:00:54]} 22. a4 {[%emt 0:02:51]} g5 {[%emt 0:01:38]} 23. g3 {[%emt 0:01:16]} bxc5 {[%emt 0:01:04]} 24. dxc5 {[%emt 0:01:48]} Ba7 {[%emt 0:02:34]} 25. Rxd5 {[%emt 0:01:22]} exd5 {[%emt 0:00:11]} 26. Be3 {[%emt 0:00:14]} Re8 {[%emt 0:02:24]} 27. Qd3 {[%emt 0:02:57]} Rce6 {[%emt 0:02:06]} 28. Bd4 {[%emt 0:01:56]} gxf4 {[%emt 0:00:28]} 29. Rxf4 {[%emt 0:00:41]} Qd7 {[%emt 0:00:47]} 30. Qb5 {[%emt 0:04:49]} Re1+ {[%emt 0:00:55]} 31. Kg2 {[%emt 0:00:07]} R1e2+ {[%emt 0:00:07]} 32. Bf2 {[%emt 0:01:08]} Qc7 {[%emt 0:03:50]} 33. Kg1 {[%emt 0:01:45]} R2e6 {[%emt 0:02:30]} 34. Rf5 {[%emt 0:02:35]} Rb8 {[%emt 0:00:53]} 35. Qd3 {[%emt 0:00:01]} Rxb3 {[%emt 0:00:42]} 36. Qxb3 {[%emt 0:00:30]} Bxc5 {[%emt 0:00:00]} 37. Qxd5 {[%emt 0:00:18]} Bxf2+ {[%emt 0:01:22]} 38. Rxf2 {[%emt 0:00:09]} Re1+ {[%emt 0:00:40]} 39. Kg2 {[%emt 0:00:36]} Re8 {[%emt 0:00:26]} 40. Rd2 {[%emt 0:01:31]} Qc3 {[%emt 0:00:55]} 41. Rf2 {[%emt 0:00:30]} Qc7 {[%emt 0:00:00]} 42. Qb3 {[%emt 0:01:36]} Qc6+ {[%emt 0:00:47]} 43. Qf3 {[%emt 0:00:30]} Qxf3+ {[%emt 0:00:04]} 44. Kxf3 {[%emt 0:00:10]} Rb8 {[%emt 0:00:09]} 45. Re2 {[%emt 0:00:49]} Rb3+ {[%emt 0:01:08]} 46. Re3 {[%emt 0:00:46]} Rb2 {[%emt 0:00:30]} 47. h4 {[%emt 0:00:48]} Ra2 {[%emt 0:00:50]} 48. Re4 f6 {[%emt 0:00:15]} 49. Rc4 {[%emt 0:01:12]} Kf7 {[%emt 0:00:21]} 50. h5 {[%emt 0:00:31]} Kg8 {[%emt 0:00:32]} 51. g4 {[%emt 0:00:10]} Kh7 {[%emt 0:00:30]} 52. Kf4 {[%emt 0:00:30]} Kh6 {[%emt 0:00:00]} 53. Rd4 {[%emt 0:01:57]} Ra1 {[%emt 0:01:03]} 54. Rc4 {[%emt 0:00:15]} Ra2 {[%emt 0:00:31]} 55. Rd4 {[%emt 0:00:56]} Rf2+ {[%emt 0:00:11]} 56. Kg3 {[%emt 0:00:18]} Ra2 {[%emt 0:00:01]} 57. Kf4 {[%emt 0:00:17]} Ra1 {[%emt 0:01:05]} 58. Rc4 {[%emt 0:00:24]} Rf1+ {[%emt 0:01:04]} 59. Kg3 {[%emt 0:00:30]} Ra1 {[%emt 0:00:00]} 60. Kf4 {[%emt 0:00:13]} Rb1 {[%emt 0:00:45]} 61. Rd4 {[%emt 0:01:04]} Ra1 {[%emt 0:00:30]} 62. Rc4 {[%emt 0:00:47]} g6 {[%emt 0:00:17]} 63. Ke4 {[%emt 0:00:43]} 1/2-1/2

[Event "5th Ordu Open 2019"]
[Site "Ordu"]
[Date "2019.05.02"]
[Round "6.10"]
[White "Gozubuyukoglu, Selami"]
[Black "Aktas, Ilker"]
[Result "0-1"]
[ECO "B90"]
[WhiteElo "1818"]
[BlackElo "1861"]
[Annotator "NA"]
[PlyCount "93"]
[EventDate "2019.04.29"]
[EventType "swiss"]
[EventCountry "TUR"]
[SourceTitle "playchess.com"]
[Source "ChessBase"]
[SourceQuality "1"]
[TimeControl "5400+30"]

1. e4 {[%emt 0:30:30]} c5 {[%emt 0:31:30]} 2. Nf3 {[%emt 0:00:30]} d6 {[%emt 0:00:30]} 3. d4 {[%emt 0:00:30]} cxd4 {[%emt 0:00:00]} 4. Nxd4 {[%emt 0:00:00]} Nf6 {[%emt 0:00:00]} 5. Nc3 {[%emt 0:00:00]} a6 {[%emt 0:00:30]} 6. Be3 {[%emt 0:00:30]} e5 {[%emt 0:00:30]} 7. Nb3 {[%emt 0:00:30]} Be6 {[%emt 0:00:30]} 8. f3 {[%emt 0:00:30]} Be7 {[%emt 0:00:30]} 9. Qd2 {[%emt 0:00:00]} Nbd7 {[%emt 0:00:00]} 10. O-O-O {[%emt 0:00:00]} b5 {[%emt 0:01:00]} 11. g4 {[%emt 0:00:00]} b4 {[%emt 0:03:30]} 12. Nd5 {[%emt 0:05:00]} Bxd5 {[%emt 0:00:30]} 13. exd5 {[%emt 0:00:00]} Nb6 {[%emt 0:00:30]} 14. Qxb4 {[%emt 0:03:00]} Nfxd5 {[%emt 0:03:30]} 15. Bxb6 {[%emt 0:02:30]} Nxb6 {[%emt 0:02:30]} 16. Qe4 {[%emt 0:05:30]} Qc7 {[%emt 0:10:30]} 17. Bd3 {[%emt 0:06:30]} d5 {[%emt 0:01:30]} 18. Qe2 {[%emt 0:01:30]} O-O {[%emt 0:02:30]} 19. c3 {[%emt 0:05:30]} a5 {[%emt 0:00:30]} 20. Nd2 {[%emt 0:02:30]} Na4 {[%emt 0:08:30]} 21. Nb1 {[%emt 0:03:30]} Bg5+ {[%emt 0:04:30]} 22. Kc2 {[%emt 0:00:30]} Rfc8 {[%emt 0:04:30]} 23. Bb5 {[%emt 0:01:30]} Nb6 {[%emt 0:02:30]} 24. a4 {[%emt 0:02:30]} d4 {[%emt 0:01:30]} 25. h4 {[%emt 0:04:30]} Bf4 {[%emt 0:00:30]} 26. h5 {[%emt 0:02:30]} Nd5 {[%emt 0:00:30]} 27. Qe4 {[%emt 0:06:12]} Ne3+ {[%emt 0:00:50]} 28. Kb3 {[%emt 0:00:42]} Rab8 {[%emt 0:01:12]} 29. Ka2 {[%emt 0:03:30]} Nxd1 {[%emt 0:08:09]} 30. Rxd1 {[%emt 0:00:12]} Rxb5 {[%emt 0:02:34]} 31. axb5 {[%emt 0:00:02]} Qc4+ {[%emt 0:02:19]} 32. b3 {[%emt 0:02:14]} Qxb5 {[%emt 0:00:24]} 33. Na3 {[%emt 0:04:15]} Qb6 {[%emt 0:02:05]} 34. cxd4 {[%emt 0:01:29]} a4 {[%emt 0:00:53]} 35. bxa4 {[%emt 0:01:29]} g6 {[%emt 0:01:22]} 36. hxg6 {[%emt 0:01:03]} hxg6 {[%emt 0:00:21]} 37. Rb1 {[%emt 0:00:57]} Qa5 {[%emt 0:00:38]} 38. d5 {[%emt 0:00:51]} Qd2+ {[%emt 0:01:59]} 39. Rb2 {[%emt 0:01:03]} Qd1 {[%emt 0:00:09]} 40. Rb1 {[%emt 0:01:37]} Qd2+ {[%emt 0:00:26]} 41. Rb2 {[%emt 0:00:12]} Qd1 {[%emt 0:00:33]} 42. Rb1 {[%emt 0:00:42]} Bc1 {[%emt 0:00:57]} 43. Nb5 {[%emt 0:02:32]} Qd2+ {[%emt 0:00:48]} 44. Kb3 {[%emt 0:00:42]} Qd1+ {[%emt 0:00:33]} 45. Ka2 {[%emt 0:00:06]} Rc2+ {[%emt 0:00:37]} 46. Ka1 {[%emt 0:00:20]} Qd2 {[%emt 0:00:22]} 47. Nc3 {[%emt 0:01:39]} 0-1

[Event "5th Ordu Open 2019"]
[Site "Ordu"]
[Date "2019.05.02"]
[Round "6.11"]
[White "Elashvili, Giorgi"]
[Black "Ceylan, Metin"]
[Result "0-1"]
[ECO "C05"]
[WhiteElo "1833"]
[BlackElo "1786"]
[Annotator "NA"]
[PlyCount "82"]
[EventDate "2019.04.29"]
[EventType "swiss"]
[EventCountry "TUR"]
[SourceTitle "playchess.com"]
[Source "ChessBase"]
[SourceQuality "1"]
[TimeControl "5400+30"]

1. e4 {[%emt 0:30:30]} e6 {[%emt 0:30:30]} 2. d4 {[%emt 0:00:30]} d5 {[%emt 0:00:30]} 3. Nd2 {[%emt 0:00:00]} Nf6 {[%emt 0:00:00]} 4. e5 {[%emt 0:00:00]} Ng8 {[%emt 0:00:00]} 5. Bd3 {[%emt 0:00:30]} c5 {[%emt 0:00:30]} 6. c3 {[%emt 0:00:30]} Nc6 {[%emt 0:00:30]} 7. Ne2 {[%emt 0:00:30]} Qb6 {[%emt 0:00:00]} 8. O-O {[%emt 0:03:30]} cxd4 {[%emt 0:03:00]} 9. cxd4 {[%emt 0:00:30]} Nxd4 {[%emt 0:03:30]} 10. Nxd4 {[%emt 0:00:30]} Qxd4 {[%emt 0:00:30]} 11. Bb5+ {[%emt 0:02:30]} Bd7 {[%emt 0:00:30]} 12. Bxd7+ {[%emt 0:00:30]} Kxd7 {[%emt 0:00:30]} 13. Qe2 {[%emt 0:01:30]} Ne7 {[%emt 0:02:30]} 14. Qb5+ {[%emt 0:07:30]} Kc7 {[%emt 0:00:30]} 15. Nf3 {[%emt 0:06:30]} Qb6 {[%emt 0:06:30]} 16. Qe2 {[%emt 0:02:30]} Nc6 {[%emt 0:04:30]} 17. Ng5 {[%emt 0:07:30]} Bc5 {[%emt 0:15:30]} 18. Nxf7 {[%emt 0:01:30]} Rhf8 {[%emt 0:00:30]} 19. Ng5 {[%emt 0:01:30]} Rae8 {[%emt 0:00:30]} 20. Nf3 {[%emt 0:07:30]} Rf5 {[%emt 0:02:30]} 21. a3 {[%emt 0:03:30]} Ref8 {[%emt 0:00:30]} 22. b4 {[%emt 0:00:30]} Nd4 {[%emt 0:01:30]} 23. Nxd4 {[%emt 0:02:47]} Bxd4 {[%emt 0:00:30]} 24. Be3 {[%emt 0:01:24]} Rxe5 {[%emt 0:08:55]} 25. Qc2+ {[%emt 0:09:21]} Kd6 {[%emt 0:03:17]} 26. Bxd4 {[%emt 0:00:58]} Qxd4 {[%emt 0:00:30]} 27. Rac1 {[%emt 0:00:00]} Qb6 {[%emt 0:00:49]} 28. a4 {[%emt 0:04:31]} Ref5 {[%emt 0:02:02]} 29. a5 {[%emt 0:00:31]} Qc6 {[%emt 0:00:55]} 30. Qb2 {[%emt 0:00:30]} Qd7 {[%emt 0:00:19]} 31. b5 {[%emt 0:01:15]} e5 {[%emt 0:03:58]} 32. b6 {[%emt 0:00:10]} a6 {[%emt 0:03:24]} 33. Rc7 {[%emt 0:00:44]} Qa4 {[%emt 0:00:33]} 34. Qc3 {[%emt 0:01:20]} R5f7 {[%emt 0:02:51]} 35. Re1 {[%emt 0:02:42]} Qd4 {[%emt 0:01:48]} 36. Qa3+ {[%emt 0:00:50]} Ke6 {[%emt 0:00:30]} 37. Qh3+ {[%emt 0:00:00]} Rf5 {[%emt 0:00:40]} 38. Rf1 {[%emt 0:00:46]} e4 {[%emt 0:01:36]} 39. Qxh7 {[%emt 0:01:41]} Rxf2 {[%emt 0:00:30]} 40. Qh3+ {[%emt 0:00:30]} R2f5+ {[%emt 0:00:30]} 41. Kh1 {[%emt 0:00:30]} Ke5 {[%emt 0:00:30]} 0-1